bitfinex/quotes_SOLUSD_20251106
["timestamp","ask_amount","ask_price","bid_price","bid_amount"]
[1762396839556,2.82950911,162.0,161.95,8.28394184]
[1762396839850,0.72,162.0,161.97,2.10950911]
[1762396840154,0.72,162.0,161.96,0.68]
[1762396840326,7.2,162.01,161.97,2.10950911]
[1762396840647,7.92,162.01,161.98,2.10950911]
[1762396840854,7.2,162.01,161.98,2.10950911]
[1762396841058,7.2,162.01,161.98,2.78950911]
[1762396841950,7.92,162.01,161.98,6.17354912]
[1762396842462,7.2,162.01,161.98,8.96305823]
[1762396843234,7.2,162.01,161.99,2.10950911]
[1762396843862,7.2,162.01,161.99,8.28265351]
[1762396844045,7.2,162.01,161.99,6.1731444]
[1762396844364,2.82950911,162.0,161.94,0.68]
[1762396844538,0.72,162.0,161.95,2.10950911]
[1762396845072,0.72,162.0,161.95,2.78950911]
[1762396845563,0.72,162.0,161.96,2.10950911]
[1762396845942,0.72,162.0,161.97,6.17398283]
[1762396846467,7.2,162.01,161.98,2.10950911]
[1762396846632,7.92,162.01,161.98,2.10950911]
[1762396846832,7.92,162.01,161.97,8.96349194]
[1762396847236,0.72,162.0,161.97,2.10950911]
[1762396847850,13.37245853,162.01,161.97,8.96334216]
[1762396848159,14.09245853,162.01,161.97,8.96334216]
[1762396848359,7.2,162.01,162.0,2.10950911]
[1762396848561,7.2,162.01,161.99,2.10950911]
[1762396848958,7.2,162.01,161.99,2.78950911]
[1762396849342,7.2,162.01,161.99,2.10950911]
[1762396849685,7.2,162.01,161.98,2.10950911]
[1762396849847,7.2,162.01,161.98,2.78950911]
[1762396850046,7.2,162.01,161.98,8.96275282]
[1762396850450,7.92,162.01,161.98,6.17324371]
[1762396850646,7.92,162.01,161.98,8.28275282]
[1762396851071,7.2,162.01,161.98,8.96275282]
[1762396851255,7.2,162.01,161.98,8.28275282]
[1762396851455,7.2,162.01,161.99,0.68]
[1762396851664,7.2,162.01,161.99,6.17289256]
[1762396851849,7.2,162.01,161.98,8.96299651]
[1762396852680,7.2,162.01,161.98,6.8534874]
[1762396853249,7.2,162.01,161.98,8.96299651]
[1762396853884,7.9,162.01,161.97,6.17383595]
[1762396854180,7.9,162.01,161.98,2.10950911]
[1762396854480,0.7,162.0,161.97,6.17383595]
[1762396855054,7.2,162.01,161.97,6.85383595]
[1762396855262,14.07247987,162.01,161.97,8.96334506]
[1762396855784,14.07258902,162.01,161.97,8.96347466]
[1762396855984,0.7,162.0,161.96,2.10950911]
[1762396856345,15.48209813,162.01,161.96,2.10950911]
[1762396856552,7.2,162.01,161.97,2.78950911]
[1762396857158,7.9,162.01,161.97,2.78950911]
[1762396857966,7.9,162.01,161.97,8.96320083]
[1762396858260,7.2,162.01,161.98,2.78950911]
[1762396858495,7.2,162.01,161.98,2.52793548]
[1762396858700,7.9,162.01,161.98,2.10950911]
[1762396860194,7.9,162.01,161.98,8.28276533]
[1762396860899,2.80950911,162.0,161.93,6.85550793]
[1762396861071,2.10950911,161.99,161.94,2.10950911]
[1762396861274,7.18,161.98,161.93,8.28501704]
[1762396861469,2.10950911,161.95,161.9,2.10950911]
[1762396861678,2.10950911,161.93,161.88,2.10950911]
[1762396861874,2.10950911,161.93,161.8,0.3051946]
[1762396861875,9.98950911,161.92,161.87,2.10950911]
[1762396862095,7.18,161.91,161.89,2.10950911]
[1762396862402,7.18,161.92,161.89,2.10950911]
[1762396862897,7.88,161.92,161.89,2.10950911]
[1762396863100,0.7,161.91,161.88,2.10950911]
[1762396863598,2.10950911,161.89,161.83,6.17932398]
[1762396863777,7.18,161.88,161.83,8.28883309]
[1762396863978,7.88,161.88,161.83,23.73714304]
[1762396864189,0.7,161.87,161.83,24.41714304]
[1762396864387,0.7,161.87,161.83,8.28883309]
[1762396864586,0.7,161.87,161.83,6.17932398]
[1762396864799,0.7,161.87,161.82,2.10950911]
[1762396864999,2.80950911,161.87,161.81,8.28949759]
[1762396865377,0.7,161.86,161.81,8.28949759]
[1762396865996,2.10950911,161.85,161.81,6.17998848]
[1762396866200,0.7,161.86,161.82,2.10950911]
[1762396866500,0.7,161.85,161.81,8.28949759]
[1762396866699,7.18,161.84,161.81,8.28949759]
[1762396867085,7.18,161.84,161.82,2.10950911]
[1762396867498,7.18,161.84,161.83,2.78950911]
[1762396867694,7.18,161.84,161.83,2.10950911]
[1762396868296,7.18,161.84,161.83,8.28883309]
[1762396869724,7.88,161.86,161.83,8.28883309]
[1762396872196,7.18,161.86,161.85,2.10950911]
[1762396872400,105.4,161.9,161.85,2.10950911]
[1762396872701,7.18,161.89,161.88,2.10950911]
[1762396873992,0.7,161.92,161.88,2.10950911]
[1762396874186,7.18,161.91,161.88,2.10950911]
[1762396874803,7.88,161.91,161.89,6.17703378]
[1762396875301,7.18,161.91,161.9,2.10950911]
[1762396876183,7.18,161.91,161.89,8.28654289]
[1762396876381,7.18,161.91,161.9,2.10950911]
[1762396876584,7.18,161.91,161.9,8.96616136]
[1762396876892,104.7,161.95,161.9,24.40779199]
[1762396876893,105.4,161.95,161.9,24.40779199]
[1762396877090,7.88,161.94,161.92,2.10950911]
[1762396877306,7.18,161.94,161.92,2.10950911]
[1762396877505,7.88,161.94,161.92,2.10950911]
[1762396877802,7.18,161.94,161.91,2.10950911]
[1762396878012,7.88,161.94,161.91,2.10950911]
[1762396878190,7.88,161.94,161.92,2.10950911]
[1762396878191,7.18,161.94,161.92,2.10950911]
[1762396878395,7.88,161.94,161.92,2.10950911]
[1762396878698,7.88,161.94,161.93,6.17550793]
[1762396880608,7.18,161.94,161.93,6.17550793]
[1762396880792,7.88,161.94,161.93,6.17550793]
[1762396881611,7.18,161.94,161.93,6.17550793]
[1762396881800,105.4,162.0,161.93,8.96501704]
[1762396882114,7.85,161.99,161.95,2.10950911]
[1762396882410,7.18,161.98,161.93,22.30427776]
[1762396882605,7.18,161.98,161.95,2.10950911]
[1762396882781,7.18,161.98,161.96,6.17436404]
[1762396882988,7.18,161.98,161.96,8.28387315]
[1762396883921,7.18,161.98,161.97,2.10950911]
[1762396885003,7.18,161.98,161.97,8.28349194]
[1762396888005,7.18,161.98,161.97,8.97349194]
[1762396888545,7.18,161.98,161.95,15.43620885]
[1762396888824,7.85,161.98,161.96,8.2835782]
[1762396889426,7.18,161.98,161.96,8.2835782]
[1762396890504,7.18,161.98,161.97,2.10950911]
[1762396891634,7.18,161.98,161.96,8.2835782]
[1762396892326,7.18,161.98,161.95,0.69]
[1762396892520,7.85,161.98,161.96,3.29685463]
[1762396892828,0.67,161.97,161.94,9.47185917]
[1762396893209,0.67,161.97,161.95,3.29685463]
[1762396894729,0.67,161.97,161.95,9.47155038]
[1762396895222,0.67,161.97,161.95,6.17469575]
[1762396896209,0.67,161.97,161.94,9.47193417]
[1762396897309,0.67,161.97,161.95,3.29685463]
[1762396897530,0.71,161.97,161.95,3.29685463]
[1762396898016,0.71,161.97,161.95,9.47124312]
[1762396898834,7.89,161.97,161.95,9.47124312]
[1762396900036,7.18,161.97,161.95,10.17124312]
[1762396900720,7.18,161.97,161.95,9.47124312]
[1762396900922,7.18,161.97,161.95,6.17438849]
[1762396901124,7.18,161.97,161.95,9.47124312]
[1762396901327,0.71,161.96,161.93,9.4722156]
[1762396901839,0.71,161.96,161.92,6.1758587]
[1762396902539,0.71,161.96,161.92,9.47271333]
[1762396904550,7.18,161.97,161.94,3.29685463]
[1762396904850,7.18,161.96,161.95,3.29685463]
[1762396905850,7.18,161.96,161.95,9.47159992]
[1762396906620,7.18,161.96,161.95,10.17159992]
[1762396906849,0.71,161.98,161.95,6.17474529]
[1762396907048,0.71,161.97,161.95,9.47159992]
[1762396907925,7.18,161.96,161.93,3.29685463]
[1762396908127,7.89,161.96,161.93,3.29685463]
[1762396908341,7.89,161.96,161.93,3.99685463]
[1762396908520,7.18,161.96,161.93,3.99685463]
[1762396908937,7.18,161.96,161.94,3.29685463]
[1762396909430,7.18,161.96,161.92,21.6152326]
[1762396909431,7.18,161.96,161.95,3.99685463]
[1762396909630,104.7,161.98,161.95,3.99685463]
[1762396909921,7.18,161.99,161.98,6.17360167]
[1762396911024,7.18,161.99,161.98,10.1704563]
[1762396911243,7.18,161.99,161.98,9.4704563]
[1762396911438,7.18,161.99,161.98,6.17360167]
[1762396912255,7.18,161.99,161.98,9.4704563]
[1762396912446,7.18,161.99,161.98,10.1704563]
[1762396912754,7.18,161.99,161.98,9.4704563]
[1762396913339,7.18,161.99,161.98,10.1704563]
[1762396913848,7.18,161.99,161.98,6.17360167]
[1762396915330,7.18,161.99,161.98,9.4704563]
[1762396916262,7.18,161.99,161.98,6.17360167]
[1762396918352,17.32013598,161.99,161.91,6.87627076]
[1762396918561,3.96685463,161.98,161.93,3.29685463]
[1762396919059,0.67,161.97,161.92,0.7]
[1762396919245,7.18,161.96,161.93,3.29685463]
[1762396919634,7.18,161.96,161.93,0.7]
[1762396919831,7.18,161.96,161.93,3.99685463]
[1762396920261,0.67,162.01,161.95,3.29685463]
[1762396920561,7.18,162.0,161.99,3.29685463]
[1762396920930,7.18,162.04,161.99,3.99685463]
[1762396921250,7.18,162.04,162.02,3.29685463]
[1762396921634,7.18,162.04,162.03,3.29685463]
[1762396921841,7.18,162.08,162.03,3.99685463]
[1762396922152,7.18,162.08,162.06,3.29685463]
[1762396922358,7.18,162.08,162.07,9.46702801]
[1762396923244,7.18,162.08,162.07,10.16702801]
[1762396923638,0.67,162.12,162.07,25.59246146]
[1762396923964,7.18,162.12,162.09,3.29685463]
[1762396924129,0.67,162.11,162.07,22.29560683]
[1762396924332,0.67,162.11,162.09,3.29685463]
[1762396925056,7.18,162.12,162.07,21.59560683]
[1762396925258,7.18,162.12,162.08,3.29685463]
[1762396925475,0.67,162.11,162.07,6.87017338]
[1762396925780,0.1,162.15,162.1,23.88885463]
[1762396925932,0.1,162.15,162.11,0.7]
[1762396926131,0.1,162.15,162.14,3.29685463]
[1762396926437,0.1,162.15,162.14,9.46436418]
[1762396927246,0.1,162.15,162.14,10.16436418]
[1762396927962,0.1,162.15,162.14,9.46436418]
[1762396928265,0.1,162.15,162.14,3.29685463]
[1762396929346,0.1,162.15,162.13,6.16787141]
[1762396929545,0.1,162.15,162.07,3.29685463]
[1762396929546,10.47685463,162.14,162.07,3.29685463]
[1762396929743,3.29685463,162.12,162.07,3.99685463]
[1762396930156,3.96685463,162.13,162.08,3.99685463]
[1762396930347,0.67,162.13,162.09,7.70594369]
[1762396930658,7.18,162.14,162.1,7.70594369]
[1762396930859,7.85,162.14,162.11,7.70594369]
[1762396931170,0.1,162.15,162.12,7.70594369]
[1762396931394,0.1,162.15,162.14,7.70594369]
[1762396931677,7.85,162.2,162.19,7.70594369]
[1762396931976,7.18,162.2,162.19,7.70594369]
[1762396932345,7.18,162.2,162.18,6.1659884]
[1762396932542,7.18,162.2,162.19,7.70594369]
[1762396932749,18.52938451,162.24,162.19,8.40594369]
[1762396933067,18.52938451,162.24,162.23,7.70594369]
[1762396933367,7.18,162.27,162.23,7.70594369]
[1762396933666,0.67,162.26,162.25,7.70594369]
[1762396933839,6.68,162.27,162.25,7.70594369]
[1762396934043,7.35,162.27,162.25,7.70594369]
[1762396934348,7.85,162.27,162.26,7.70594369]
[1762396934554,7.18,162.27,162.26,7.70594369]
[1762396934778,7.18,162.27,162.26,13.86889204]
[1762396935268,0.67,162.31,162.26,14.56889204]
[1762396935472,0.67,162.33,162.29,7.70594369]
[1762396935679,7.18,162.32,162.3,7.70594369]
[1762396935989,0.67,162.33,162.3,7.70594369]
[1762396936145,18.5122335,162.4,162.32,7.70594369]
[1762396936470,0.67,162.38,162.32,6.16067028]
[1762396936654,7.18,162.37,162.33,7.70594369]
[1762396936859,14.88594369,162.37,162.27,16.10552472]
[1762396937040,8.37594369,162.36,162.28,6.1621888]
[1762396937245,0.67,162.36,162.26,7.70594369]
[1762396937441,7.70594369,162.31,162.26,7.70594369]
[1762396937653,7.18,162.3,162.26,7.70594369]
[1762396937862,7.85,162.3,162.26,7.70594369]
[1762396938066,0.67,162.29,162.25,7.70594369]
[1762396938273,0.67,162.29,162.24,7.70594369]
[1762396938450,0.67,162.29,162.23,6.86380925]
[1762396938451,6.83187033,162.29,162.23,6.86380925]
[1762396938649,6.83187033,162.29,162.24,7.70594369]
[1762396939276,6.83187033,162.29,162.25,7.70594369]
[1762396939660,8.37594369,162.28,162.23,7.70594369]
[1762396940058,0.67,162.27,162.23,8.40594369]
[1762396940254,0.67,162.27,162.18,7.18]
[1762396940255,14.88594369,162.26,162.18,7.18]
[1762396940571,21.04905356,162.26,162.21,7.70594369]
[1762396940871,7.70594369,162.24,162.19,7.70594369]
[1762396941080,7.70594369,162.23,162.17,13.87225575]
[1762396941262,14.88594369,162.22,162.17,13.87225575]
[1762396941579,7.70594369,162.21,162.14,6.86729167]
[1762396941752,7.70594369,162.21,162.15,7.70594369]
[1762396941753,8.37594369,162.21,162.15,7.70594369]
[1762396942261,7.70594369,162.19,162.14,6.16729167]
[1762396942459,14.55131716,162.2,162.13,6.16788996]
[1762396942660,14.55131716,162.2,162.14,7.70594369]
[1762396942855,0.68,162.19,162.14,7.70594369]
[1762396943057,0.68,162.19,162.11,13.87457459]
[1762396943058,7.70594369,162.16,162.11,13.87457459]
[1762396943257,7.18,162.15,162.11,7.70594369]
[1762396943470,15.56594369,162.15,162.09,7.70594369]
[1762396943772,8.38594369,162.14,162.08,8.36594369]
[1762396943974,8.38594369,162.14,162.09,7.70594369]
[1762396943975,0.68,162.14,162.09,7.70594369]
[1762396944154,0.68,162.14,162.1,7.70594369]
[1762396944353,0.68,162.17,162.12,7.70594369]
[1762396944667,0.68,162.17,162.13,7.70594369]
[1762396944846,7.2,162.16,162.13,7.70594369]
[1762396945046,7.2,162.16,162.12,7.70594369]
[1762396945482,7.70594369,162.19,162.13,7.70594369]
[1762396945683,7.2,162.18,162.14,7.70594369]
[1762396945849,0.77041602,162.25,162.16,7.70594369]
[1762396946054,20.592,162.23,162.19,7.70594369]
[1762396946354,0.68,162.24,162.2,7.70594369]
[1762396946548,7.2,162.23,162.2,13.87086732]
[1762396946956,7.88,162.23,162.19,13.87146743]
[1762396947468,7.2,162.23,162.2,7.70594369]
[1762396947862,7.2,162.23,162.19,14.53146743]
[1762396948577,7.2,162.23,162.18,15.41493348]
[1762396948578,7.2,162.22,162.17,0.66]
[1762396948784,7.88,162.22,162.17,7.70594369]
[1762396948995,0.68,162.21,162.15,6.1671292]
[1762396949161,0.68,162.21,162.16,7.70594369]
[1762396949355,7.2,162.2,162.15,6.8271292]
[1762396949690,7.2,162.2,162.16,7.70594369]
[1762396950058,7.88,162.2,162.16,7.70594369]
[1762396950262,0.68,162.19,162.15,6.1671292]
[1762396950598,7.38,162.18,162.15,6.1671292]
[1762396951856,7.38,162.18,162.12,16.07983669]
[1762396952059,0.68,162.17,162.08,6.16979269]
[1762396952304,0.68,162.17,162.08,13.87573638]
[1762396952482,5.48633828,162.15,162.09,5.48633828]
[1762396952681,13.36758865,162.14,162.09,5.48633828]
[1762396952886,14.04758865,162.14,162.09,11.65568202]
[1762396953377,0.68,162.13,162.09,6.16934374]
[1762396953584,6.16633828,162.13,162.08,11.65609174]
[1762396953970,7.2,162.14,162.08,0.66]
[1762396954175,0.68,162.13,162.08,6.14633828]
[1762396954690,0.68,162.13,162.09,6.16941205]
[1762396954992,0.68,162.13,162.09,11.65575033]
[1762396955183,0.68,162.13,162.09,6.16941205]
[1762396955382,6.16633828,162.15,162.09,12.31575033]
[1762396955565,7.2,162.14,162.09,12.31575033]
[1762396955965,7.9,162.14,162.09,12.31575033]
[1762396956682,0.7,162.13,162.09,6.16941205]
[1762396956866,6.18633828,162.13,162.08,6.16971514]
[1762396957268,0.7,162.12,162.08,6.16971514]
[1762396957470,6.18633828,162.13,162.08,6.83971514]
[1762396957890,6.18633828,162.13,162.05,20.592]
[1762396957891,5.48633828,162.11,162.05,42.17553476]
[1762396958097,7.2,162.1,162.06,6.17046871]
[1762396958597,0.7,162.09,162.06,6.17046871]
[1762396958796,7.9,162.1,162.06,6.17046871]
[1762396958972,7.2,162.1,162.06,6.84046871]
[1762396959175,7.9,162.1,162.06,6.84046871]
[1762396959387,7.9,162.1,162.05,11.65726075]
[1762396959586,7.2,162.09,162.06,5.48633828]
[1762396959826,7.2,162.09,162.05,6.17092247]
[1762396959968,7.2,162.09,162.03,11.65803487]
[1762396959969,6.18633828,162.08,162.03,11.65803487]
[1762396960388,6.18633828,162.08,162.03,12.32803487]
[1762396960704,0.7,162.07,162.03,11.65803487]
[1762396961797,0.7,162.07,162.03,12.32803487]
[1762396961995,0.7,162.11,162.05,5.48633828]
[1762396962204,7.2,162.08,162.06,5.48633828]
[1762396962585,7.2,162.08,162.04,0.67]
[1762396962782,7.2,162.08,162.06,5.48633828]
[1762396962982,7.2,162.08,162.05,11.65707087]
[1762396963278,7.2,162.08,162.07,5.48633828]
[1762396963488,270.1,162.19,162.07,5.48633828]
[1762396963689,414.1,162.26,162.17,5.48633828]
[1762396963896,0.7,162.22,162.18,5.48633828]
[1762396964105,7.22,162.21,162.18,5.48633828]
[1762396964397,7.22,162.21,162.19,5.48633828]
[1762396964596,7.22,162.21,162.18,5.48633828]
[1762396964814,7.22,162.21,162.19,5.48633828]
[1762396964998,7.22,162.21,162.2,6.16522811]
[1762396965210,7.22,162.21,162.2,11.65156639]
[1762396965417,7.22,162.21,162.2,12.32156639]
[1762396965707,7.22,162.24,162.2,12.32156639]
[1762396965880,0.7,162.29,162.23,5.48633828]
[1762396966078,7.22,162.28,162.24,5.48633828]
[1762396966391,7.22,162.28,162.25,5.48633828]
[1762396966785,7.92,162.28,162.25,5.48633828]
[1762396966973,6.18633828,162.27,162.2,21.57829839]
[1762396967177,5.48633828,162.25,162.2,21.57829839]
[1762396967378,7.22,162.24,162.2,21.57829839]
[1762396967685,7.92,162.24,162.2,6.16522811]
[1762396967882,6.18633828,162.23,162.19,6.16543938]
[1762396968289,6.18633828,162.22,162.17,20.592]
[1762396968488,6.18633828,162.22,162.16,41.49441597]
[1762396968696,0.7,162.22,162.18,5.48633828]
[1762396968996,13.40633828,162.24,162.19,6.16560823]
[1762396969196,0.7,162.23,162.19,6.16560823]
[1762396969403,0.7,162.23,162.18,5.48633828]
[1762396969706,0.7,162.23,162.18,27.0672754]
[1762396969881,7.22,162.22,162.18,6.16596611]
[1762396970278,7.92,162.22,162.18,11.65230439]
[1762396970593,7.92,162.22,162.18,6.16596611]
[1762396970797,7.92,162.22,162.18,11.65230439]
[1762396970982,7.92,162.22,162.18,6.16596611]
[1762396971400,7.22,162.22,162.18,6.16596611]
[1762396971597,7.92,162.26,162.21,5.48633828]
[1762396971787,7.22,162.25,162.22,5.48633828]
[1762396971988,7.92,162.25,162.22,5.48633828]
[1762396972818,6.15633828,162.24,162.18,6.16596611]
[1762396973017,6.15633828,162.24,162.18,11.65230439]
[1762396973204,0.67,162.24,162.19,5.48633828]
[1762396973401,0.67,162.27,162.22,11.65080628]
[1762396973596,0.67,162.27,162.22,12.33080628]
[1762396973597,7.22,162.26,162.22,12.33080628]
[1762396973916,7.22,162.26,162.22,27.74197629]
[1762396974494,7.22,162.26,162.23,5.48633828]
[1762396974709,7.89,162.26,162.22,6.164468]
[1762396975018,7.89,162.26,162.22,11.65080628]
[1762396975588,7.89,162.26,162.23,5.48633828]
[1762396975791,7.22,162.26,162.23,5.48633828]
[1762396977516,7.22,162.26,162.23,11.65009264]
[1762396977714,7.22,162.26,162.23,12.33009264]
[1762396978096,7.22,162.26,162.23,11.65009264]
[1762396978398,6.15633828,162.28,162.23,6.16375436]
[1762396978606,7.89,162.27,162.23,6.16375436]
[1762396979021,7.89,162.27,162.23,6.84375436]
[1762396980019,7.89,162.27,162.23,6.16375436]
[1762396980400,0.67,162.26,162.22,6.16435084]
[1762396980928,5.48633828,162.25,162.18,6.84589207]
[1762396981220,5.48633828,162.25,162.2,5.48633828]
[1762396981419,0.67,162.29,162.23,5.48633828]
[1762396981721,7.89,162.29,162.24,0.68]
[1762396981925,7.89,162.29,162.25,5.48633828]
[1762396982494,7.89,162.29,162.24,6.16633828]
[1762396982689,13.38184681,162.29,162.24,6.16633828]
[1762396982894,0.67,162.28,162.24,6.16633828]
[1762396983502,0.67,162.28,162.24,11.6497765]
[1762396983705,0.67,162.28,162.25,5.48633828]
[1762396984019,104.7,162.34,162.26,5.48633828]
[1762396984221,7.22,162.31,162.27,5.48633828]
[1762396984703,0.67,162.3,162.26,5.48633828]
[1762396985718,5.48633828,162.27,162.19,0.68]
[1762396985924,12.70633828,162.26,162.2,5.48633828]
[1762396986102,7.22,162.25,162.21,5.48633828]
[1762396986499,7.22,162.25,162.22,5.48633828]
[1762396986714,7.22,162.25,162.23,5.48633828]
[1762396986914,7.22,162.25,162.22,6.16633828]
[1762396987426,7.22,162.25,162.2,5.48633828]
[1762396987602,0.67,162.24,162.2,6.16522811]
[1762396987796,7.22,162.25,162.21,6.16633828]
[1762396988033,7.89,162.25,162.21,6.16633828]
[1762396988409,7.22,162.25,162.2,6.16522811]
[1762396988733,6.15633828,162.24,162.2,6.16522811]
[1762396988917,7.22,162.25,162.21,0.68]
[1762396989121,7.89,162.25,162.21,0.68]
[1762396989849,7.89,162.25,162.22,6.164468]
[1762396990498,0.67,162.25,162.22,6.164468]
[1762396990700,7.89,162.25,162.22,6.164468]
[1762396991330,13.37633828,162.25,162.22,6.164468]
[1762396991723,6.15633828,162.25,162.2,21.57829839]
[1762396991930,5.48633828,162.23,162.19,6.16550014]
[1762396992520,0.67,162.22,162.19,6.16550014]
[1762396993024,6.15633828,162.22,162.18,6.16593652]
[1762396993211,0.67,162.22,162.18,6.16593652]
[1762396993413,5.48633828,162.22,162.18,6.84593652]
[1762396994232,6.15633828,162.22,162.18,6.84593652]
[1762396994707,6.15633828,162.22,162.18,6.16593652]
[1762396994909,5.48633828,162.22,162.18,6.16593652]
[1762396995110,0.77022613,162.29,162.19,0.68]
[1762396995416,5.48633828,162.26,162.2,5.48633828]
[1762396995916,5.48633828,162.26,162.21,5.48633828]
[1762396996228,5.48633828,162.26,162.22,6.164468]
[1762396996532,0.67,162.25,162.21,6.16483636]
[1762396996834,6.15633828,162.25,162.21,6.16483636]
[1762396997205,7.22,162.24,162.21,6.16483636]
[1762396997700,7.89,162.24,162.21,6.16483636]
[1762396998323,7.22,162.23,162.21,6.16483636]
[1762396998714,7.22,162.23,162.2,6.1651013]
[1762396998927,0.67,162.22,162.2,6.1651013]
[1762396999335,7.22,162.23,162.2,6.1651013]
[1762396999634,6.15633828,162.3,162.22,5.48633828]
[1762396999853,0.67,162.33,162.27,5.48633828]
[1762397000015,13.37633828,162.32,162.28,6.1621888]
[1762397000334,7.89,162.32,162.28,6.1621888]
[1762397000534,7.22,162.32,162.28,11.64852708]
[1762397000836,0.67,162.32,162.29,5.48633828]
[1762397001010,7.22,162.32,162.3,5.48633828]
[1762397001419,7.22,162.32,162.28,27.0539991]
[1762397001619,7.22,162.32,162.28,27.7339991]
[1762397001838,0.67,162.31,162.25,15.40796991]
[1762397002041,12.70633828,162.32,162.25,15.40796991]
[1762397002042,7.22,162.32,162.28,5.48633828]
[1762397002420,7.22,162.32,162.28,6.18633828]
[1762397003140,7.22,162.32,162.28,5.48633828]
[1762397003343,0.71,162.31,162.27,5.48633828]
[1762397003542,5.48633828,162.3,162.25,6.16322756]
[1762397003843,0.71,162.29,162.25,6.86322756]
[1762397004033,7.22,162.28,162.25,22.27154805]
[1762397004436,7.22,162.28,162.25,6.86322756]
[1762397005019,7.22,162.28,162.25,12.34956584]
[1762397005225,7.22,162.28,162.25,27.75788633]
[1762397007643,7.22,162.28,162.25,12.34956584]
[1762397007949,7.22,162.28,162.25,11.64956584]
[1762397008250,0.71,162.27,162.24,6.16359954]
[1762397008452,0.71,162.27,162.21,16.11190079]
[1762397008453,6.19633828,162.27,162.21,15.41190079]
[1762397008758,5.48633828,162.26,162.21,20.89823907]
[1762397008947,5.48633828,162.26,162.2,5.48633828]
[1762397008948,5.48633828,162.25,162.2,5.48633828]
[1762397009146,12.70633828,162.24,162.19,6.16547899]
[1762397009331,13.41633828,162.24,162.19,6.16547899]
[1762397009532,0.71,162.23,162.19,11.65181727]
[1762397010138,7.22,162.24,162.21,6.16484803]
[1762397010646,7.93,162.24,162.21,6.16484803]
[1762397010844,7.22,162.24,162.21,21.57696812]
[1762397011034,7.22,162.25,162.23,5.48633828]
[1762397011236,7.22,162.25,162.23,6.18633828]
[1762397012061,7.22,162.25,162.22,5.48633828]
[1762397012365,0.71,162.24,162.21,6.16484803]
[1762397013239,7.22,162.25,162.21,6.16484803]
[1762397013552,13.41633828,162.25,162.21,6.16484803]
[1762397014248,18.86966745,162.25,162.19,15.4132599]
[1762397014450,7.69621313,162.22,162.17,15.41556396]
[1762397014648,7.22,162.21,162.18,6.1659884]
[1762397014828,7.93,162.21,162.18,6.1659884]
[1762397015556,7.22,162.21,162.18,6.1659884]
[1762397015749,7.22,162.21,162.18,29.27717254]
[1762397016051,7.22,162.21,162.19,8.40621313]
[1762397016253,104.7,162.28,162.2,7.69621313]
[1762397016254,0.7,162.26,162.2,7.69621313]
[1762397016559,7.22,162.25,162.21,13.86106116]
[1762397016754,7.22,162.25,162.21,6.16484803]
[1762397016934,0.7,162.24,162.21,6.16484803]
[1762397019041,0.7,162.24,162.21,21.57696812]
[1762397019239,7.22,162.25,162.21,22.28696812]
[1762397019558,0.7,162.24,162.21,21.57696812]
[1762397019730,0.7,162.24,162.21,6.16484803]
[1762397020256,7.2,162.23,162.21,6.16484803]
[1762397020450,14.89621313,162.23,162.2,6.16516599]
[1762397020657,0.7,162.22,162.19,6.16560823]
[1762397021557,7.69621313,162.21,162.18,6.16590597]
[1762397021737,0.7,162.22,162.16,6.16674888]
[1762397021930,7.69621313,162.21,162.16,14.57296201]
[1762397022357,7.69621313,162.21,162.17,0.71]
[1762397022358,8.39621313,162.21,162.17,0.71]
[1762397022849,8.39621313,162.21,162.18,6.1659884]
[1762397024252,0.7,162.21,162.18,6.1659884]
[1762397024459,0.7,162.26,162.19,8.40621313]
[1762397024638,51.3228364,162.33,162.19,8.40621313]
[1762397024639,8.39621313,162.29,162.24,7.69621313]